Workbook

Sheet By_Beads
A1: This spreadsheet is designed to provide correct tapering for the reduction of Cymbalta following the guidelines
A2: recommended by the Facebook Group 'Cymbalta Hurts Worse'. To use this spreadsheet effectively please
A3: fill in the coloured spaces below. The number of beads Removed, Beads Consumed, Mg Removed, Mg Consumed
A4: will all update automatically. Then simply follow the correct column, reducing each week until you reach zero.
A5: You can ignore the weeks following zero.
A7: Please note the values currently in the cells are for example only. Your values will most likely be different.
A9: Note that you can fill in either the average measured mg weight from 3 capsules if using the scale method
A10: or the average number of beads from 3 capsules if using the bead method: you do not have to enter both.
A12: Then enter the desired taper rate. Note that the maximum recommended rate is 10%.
A14: Either average number of beads from 3 capsules: | D14: 207
A16: Desired taper reduction rate: | D16: 2.5
A18: Number of days between tapers: | D18: 10
A20: Date | B20: Week Number | C20: Beads Removed | D20: Beads Consumed
A21: 2016-09-09 | B21: =WEEKNUM(A21,21) -> 36 | C21: =ROUND(D14*D16/100,0) -> 5 | D21: =D14-C21 -> 202
A22: =A21+$D$18 -> 2016-09-19 | B22: =WEEKNUM(A22,21) -> 38 | C22: =IF(D21*D$16/100<=0,0,IF(D21*D$16/100<1,1,ROUND(D21*D$16/100,0))) -> 5 | D22: =D21-C22 -> 197
A23: =A22+$D$18 -> 2016-09-29 | B23: =WEEKNUM(A23,21) -> 39 | C23: =IF(D22*D$16/100<=0,0,IF(D22*D$16/100<1,1,ROUND(D22*D$16/100,0))) -> 5 | D23: =D22-C23 -> 192
A24: 2016-10-09 | B24: 40 | C24: =IF(D23*D$16/100<=0,0,IF(D23*D$16/100<1,1,ROUND(D23*D$16/100,0))) -> 5 | D24: =D23-C24 -> 187
A25: 2016-10-19 | B25: 42 | C25: =IF(D24*D$16/100<=0,0,IF(D24*D$16/100<1,1,ROUND(D24*D$16/100,0))) -> 5 | D25: 182
A26: 2016-10-29 | B26: 43 | C26: =IF(D25*D$16/100<=0,0,IF(D25*D$16/100<1,1,ROUND(D25*D$16/100,0))) -> 5 | D26: 177
A27: 2016-11-08 | B27: 45 | C27: =IF(D26*D$16/100<=0,0,IF(D26*D$16/100<1,1,ROUND(D26*D$16/100,0))) -> 4 | D27: 173
A28: 2016-11-18 | B28: 46 | C28: =IF(D27*D$16/100<=0,0,IF(D27*D$16/100<1,1,ROUND(D27*D$16/100,0))) -> 4 | D28: 169
A29: 2016-11-28 | B29: 48 | C29: =IF(D28*D$16/100<=0,0,IF(D28*D$16/100<1,1,ROUND(D28*D$16/100,0))) -> 4 | D29: 165
A30: 2016-12-08 | B30: 49 | C30: =IF(D29*D$16/100<=0,0,IF(D29*D$16/100<1,1,ROUND(D29*D$16/100,0))) -> 4 | D30: 161
A31: 2016-12-18 | B31: 50 | C31: =IF(D30*D$16/100<=0,0,IF(D30*D$16/100<1,1,ROUND(D30*D$16/100,0))) -> 4 | D31: 157
A32: 2016-12-28 | B32: 52 | C32: =IF(D31*D$16/100<=0,0,IF(D31*D$16/100<1,1,ROUND(D31*D$16/100,0))) -> 4 | D32: 153
A33: 2017-01-07 | B33: 1 | C33: =IF(D32*D$16/100<=0,0,IF(D32*D$16/100<1,1,ROUND(D32*D$16/100,0))) -> 4 | D33: 149
A34: 2017-01-17 | B34: 3 | C34: =IF(D33*D$16/100<=0,0,IF(D33*D$16/100<1,1,ROUND(D33*D$16/100,0))) -> 4 | D34: 145
A35: 2017-01-27 | B35: 4 | C35: =IF(D34*D$16/100<=0,0,IF(D34*D$16/100<1,1,ROUND(D34*D$16/100,0))) -> 4 | D35: 141
A36: 2017-02-06 | B36: 6 | C36: =IF(D35*D$16/100<=0,0,IF(D35*D$16/100<1,1,ROUND(D35*D$16/100,0))) -> 4 | D36: 137
A37: 2017-02-16 | B37: 7 | C37: =IF(D36*D$16/100<=0,0,IF(D36*D$16/100<1,1,ROUND(D36*D$16/100,0))) -> 3 | D37: 134
A38: 2017-02-26 | B38: 8 | C38: =IF(D37*D$16/100<=0,0,IF(D37*D$16/100<1,1,ROUND(D37*D$16/100,0))) -> 3 | D38: 131
A39: 2017-03-08 | B39: 10 | C39: =IF(D38*D$16/100<=0,0,IF(D38*D$16/100<1,1,ROUND(D38*D$16/100,0))) -> 3 | D39: 128
A40: 2017-03-18 | B40: 11 | C40: =IF(D39*D$16/100<=0,0,IF(D39*D$16/100<1,1,ROUND(D39*D$16/100,0))) -> 3 | D40: 125
A41: 2017-03-28 | B41: 13 | C41: =IF(D40*D$16/100<=0,0,IF(D40*D$16/100<1,1,ROUND(D40*D$16/100,0))) -> 3 | D41: 122
A42: 2017-04-07 | B42: 14 | C42: =IF(D41*D$16/100<=0,0,IF(D41*D$16/100<1,1,ROUND(D41*D$16/100,0))) -> 3 | D42: 119
A43: 2017-04-17 | B43: 16 | C43: =IF(D42*D$16/100<=0,0,IF(D42*D$16/100<1,1,ROUND(D42*D$16/100,0))) -> 3 | D43: 116
A44: 2017-04-27 | B44: 17 | C44: =IF(D43*D$16/100<=0,0,IF(D43*D$16/100<1,1,ROUND(D43*D$16/100,0))) -> 3 | D44: 113
A45: 2017-05-07 | B45: 18 | C45: =IF(D44*D$16/100<=0,0,IF(D44*D$16/100<1,1,ROUND(D44*D$16/100,0))) -> 3 | D45: 110
A46: 2017-05-17 | B46: 20 | C46: =IF(D45*D$16/100<=0,0,IF(D45*D$16/100<1,1,ROUND(D45*D$16/100,0))) -> 3 | D46: 107
A47: 2017-05-27 | B47: 21 | C47: =IF(D46*D$16/100<=0,0,IF(D46*D$16/100<1,1,ROUND(D46*D$16/100,0))) -> 3 | D47: 104
A48: 2017-06-06 | B48: 23 | C48: =IF(D47*D$16/100<=0,0,IF(D47*D$16/100<1,1,ROUND(D47*D$16/100,0))) -> 3 | D48: 101
A49: 2017-06-16 | B49: 24 | C49: =IF(D48*D$16/100<=0,0,IF(D48*D$16/100<1,1,ROUND(D48*D$16/100,0))) -> 3 | D49: 98
A50: 2017-06-26 | B50: 26 | C50: =IF(D49*D$16/100<=0,0,IF(D49*D$16/100<1,1,ROUND(D49*D$16/100,0))) -> 2 | D50: 96
A51: 2017-07-06 | B51: 27 | C51: =IF(D50*D$16/100<=0,0,IF(D50*D$16/100<1,1,ROUND(D50*D$16/100,0))) -> 2 | D51: 94
A52: 2017-07-16 | B52: 28 | C52: =IF(D51*D$16/100<=0,0,IF(D51*D$16/100<1,1,ROUND(D51*D$16/100,0))) -> 2 | D52: 92
A53: 2017-07-26 | B53: 30 | C53: =IF(D52*D$16/100<=0,0,IF(D52*D$16/100<1,1,ROUND(D52*D$16/100,0))) -> 2 | D53: 90
A54: 2017-08-05 | B54: 31 | C54: =IF(D53*D$16/100<=0,0,IF(D53*D$16/100<1,1,ROUND(D53*D$16/100,0))) -> 2 | D54: 88
A55: 2017-08-15 | B55: 33 | C55: =IF(D54*D$16/100<=0,0,IF(D54*D$16/100<1,1,ROUND(D54*D$16/100,0))) -> 2 | D55: 86
A56: 2017-08-25 | B56: 34 | C56: =IF(D55*D$16/100<=0,0,IF(D55*D$16/100<1,1,ROUND(D55*D$16/100,0))) -> 2 | D56: 84
A57: 2017-09-04 | B57: 36 | C57: =IF(D56*D$16/100<=0,0,IF(D56*D$16/100<1,1,ROUND(D56*D$16/100,0))) -> 2 | D57: 82
A58: 2017-09-14 | B58: 37 | C58: =IF(D57*D$16/100<=0,0,IF(D57*D$16/100<1,1,ROUND(D57*D$16/100,0))) -> 2 | D58: 80
A59: 2017-09-24 | B59: 38 | C59: =IF(D58*D$16/100<=0,0,IF(D58*D$16/100<1,1,ROUND(D58*D$16/100,0))) -> 2 | D59: 78
A60: 2017-10-04 | B60: 40 | C60: =IF(D59*D$16/100<=0,0,IF(D59*D$16/100<1,1,ROUND(D59*D$16/100,0))) -> 2 | D60: 76
A61: 2017-10-14 | B61: 41 | C61: =IF(D60*D$16/100<=0,0,IF(D60*D$16/100<1,1,ROUND(D60*D$16/100,0))) -> 2 | D61: 74
A62: 2017-10-24 | B62: 43 | C62: =IF(D61*D$16/100<=0,0,IF(D61*D$16/100<1,1,ROUND(D61*D$16/100,0))) -> 2 | D62: 72
A63: 2017-11-03 | B63: 44 | C63: =IF(D62*D$16/100<=0,0,IF(D62*D$16/100<1,1,ROUND(D62*D$16/100,0))) -> 2 | D63: 70
A64: 2017-11-13 | B64: 46 | C64: =IF(D63*D$16/100<=0,0,IF(D63*D$16/100<1,1,ROUND(D63*D$16/100,0))) -> 2 | D64: 68
A65: 2017-11-23 | B65: 47 | C65: =IF(D64*D$16/100<=0,0,IF(D64*D$16/100<1,1,ROUND(D64*D$16/100,0))) -> 2 | D65: 66
A66: 2017-12-03 | B66: 48 | C66: =IF(D65*D$16/100<=0,0,IF(D65*D$16/100<1,1,ROUND(D65*D$16/100,0))) -> 2 | D66: 64
A67: 2017-12-13 | B67: 50 | C67: =IF(D66*D$16/100<=0,0,IF(D66*D$16/100<1,1,ROUND(D66*D$16/100,0))) -> 2 | D67: 62
A68: 2017-12-23 | B68: 51 | C68: =IF(D67*D$16/100<=0,0,IF(D67*D$16/100<1,1,ROUND(D67*D$16/100,0))) -> 2 | D68: 60
A69: 2018-01-02 | B69: 1 | C69: =IF(D68*D$16/100<=0,0,IF(D68*D$16/100<1,1,ROUND(D68*D$16/100,0))) -> 2 | D69: 58
A70: 2018-01-12 | B70: 2 | C70: =IF(D69*D$16/100<=0,0,IF(D69*D$16/100<1,1,ROUND(D69*D$16/100,0))) -> 1 | D70: 57
A71: 2018-01-22 | B71: 4 | C71: =IF(D70*D$16/100<=0,0,IF(D70*D$16/100<1,1,ROUND(D70*D$16/100,0))) -> 1 | D71: 56
A72: 2018-02-01 | B72: 5 | C72: =IF(D71*D$16/100<=0,0,IF(D71*D$16/100<1,1,ROUND(D71*D$16/100,0))) -> 1 | D72: 55
A73: 2018-02-11 | B73: 6 | C73: =IF(D72*D$16/100<=0,0,IF(D72*D$16/100<1,1,ROUND(D72*D$16/100,0))) -> 1 | D73: 54
A74: 2018-02-21 | B74: 8 | C74: =IF(D73*D$16/100<=0,0,IF(D73*D$16/100<1,1,ROUND(D73*D$16/100,0))) -> 1 | D74: 53
A75: 2018-03-03 | B75: 9 | C75: =IF(D74*D$16/100<=0,0,IF(D74*D$16/100<1,1,ROUND(D74*D$16/100,0))) -> 1 | D75: 52
A76: 2018-03-13 | B76: 11 | C76: =IF(D75*D$16/100<=0,0,IF(D75*D$16/100<1,1,ROUND(D75*D$16/100,0))) -> 1 | D76: 51
A77: 2018-03-23 | B77: 12 | C77: =IF(D76*D$16/100<=0,0,IF(D76*D$16/100<1,1,ROUND(D76*D$16/100,0))) -> 1 | D77: 50
A78: 2018-04-02 | B78: 14 | C78: =IF(D77*D$16/100<=0,0,IF(D77*D$16/100<1,1,ROUND(D77*D$16/100,0))) -> 1 | D78: 49
A79: 2018-04-12 | B79: 15 | C79: =IF(D78*D$16/100<=0,0,IF(D78*D$16/100<1,1,ROUND(D78*D$16/100,0))) -> 1 | D79: 48
A80: 2018-04-22 | B80: 16 | C80: =IF(D79*D$16/100<=0,0,IF(D79*D$16/100<1,1,ROUND(D79*D$16/100,0))) -> 1 | D80: 47
A81: 2018-05-02 | B81: 18 | C81: =IF(D80*D$16/100<=0,0,IF(D80*D$16/100<1,1,ROUND(D80*D$16/100,0))) -> 1 | D81: 46
A82: 2018-05-12 | B82: 19 | C82: =IF(D81*D$16/100<=0,0,IF(D81*D$16/100<1,1,ROUND(D81*D$16/100,0))) -> 1 | D82: 45
A83: 2018-05-22 | B83: 21 | C83: =IF(D82*D$16/100<=0,0,IF(D82*D$16/100<1,1,ROUND(D82*D$16/100,0))) -> 1 | D83: 44
A84: 2018-06-01 | B84: 22 | C84: =IF(D83*D$16/100<=0,0,IF(D83*D$16/100<1,1,ROUND(D83*D$16/100,0))) -> 1 | D84: 43
A85: 2018-06-11 | B85: 24 | C85: =IF(D84*D$16/100<=0,0,IF(D84*D$16/100<1,1,ROUND(D84*D$16/100,0))) -> 1 | D85: 42
A86: 2018-06-21 | B86: 25 | C86: =IF(D85*D$16/100<=0,0,IF(D85*D$16/100<1,1,ROUND(D85*D$16/100,0))) -> 1 | D86: 41
A87: =A86+$D$18 -> 2018-07-01 | B87: =WEEKNUM(A87,21) -> 26 | C87: =IF(D86*D$16/100<=0,0,IF(D86*D$16/100<1,1,ROUND(D86*D$16/100,0))) -> 1 | D87: 40
A88: 2018-07-11 | B88: 28 | C88: =IF(D87*D$16/100<=0,0,IF(D87*D$16/100<1,1,ROUND(D87*D$16/100,0))) -> 1 | D88: =D87-C88 -> 39
A89: 2018-07-21 | B89: 29 | C89: =IF(D88*D$16/100<=0,0,IF(D88*D$16/100<1,1,ROUND(D88*D$16/100,0))) -> 1 | D89: 38
A90: 2018-07-31 | B90: 31 | C90: =IF(D89*D$16/100<=0,0,IF(D89*D$16/100<1,1,ROUND(D89*D$16/100,0))) -> 1 | D90: 37
A91: 2018-08-10 | B91: 32 | C91: =IF(D90*D$16/100<=0,0,IF(D90*D$16/100<1,1,ROUND(D90*D$16/100,0))) -> 1 | D91: 36
A92: 2018-08-20 | B92: 34 | C92: =IF(D91*D$16/100<=0,0,IF(D91*D$16/100<1,1,ROUND(D91*D$16/100,0))) -> 1 | D92: 35
A93: 2018-08-30 | B93: 35 | C93: =IF(D92*D$16/100<=0,0,IF(D92*D$16/100<1,1,ROUND(D92*D$16/100,0))) -> 1 | D93: 34
A94: 2018-09-09 | B94: 36 | C94: =IF(D93*D$16/100<=0,0,IF(D93*D$16/100<1,1,ROUND(D93*D$16/100,0))) -> 1 | D94: 33
A95: 2018-09-19 | B95: 38 | C95: =IF(D94*D$16/100<=0,0,IF(D94*D$16/100<1,1,ROUND(D94*D$16/100,0))) -> 1 | D95: 32
A96: 2018-09-29 | B96: 39 | C96: =IF(D95*D$16/100<=0,0,IF(D95*D$16/100<1,1,ROUND(D95*D$16/100,0))) -> 1 | D96: 31
A97: 2018-10-09 | B97: 41 | C97: =IF(D96*D$16/100<=0,0,IF(D96*D$16/100<1,1,ROUND(D96*D$16/100,0))) -> 1 | D97: 30
A98: 2018-10-19 | B98: 42 | C98: =IF(D97*D$16/100<=0,0,IF(D97*D$16/100<1,1,ROUND(D97*D$16/100,0))) -> 1 | D98: 29
A99: 2018-10-29 | B99: 44 | C99: =IF(D98*D$16/100<=0,0,IF(D98*D$16/100<1,1,ROUND(D98*D$16/100,0))) -> 1 | D99: 28
A100: 2018-11-08 | B100: 45 | C100: =IF(D99*D$16/100<=0,0,IF(D99*D$16/100<1,1,ROUND(D99*D$16/100,0))) -> 1 | D100: 27
A101: 2018-11-18 | B101: 46 | C101: =IF(D100*D$16/100<=0,0,IF(D100*D$16/100<1,1,ROUND(D100*D$16/100,0))) -> 1 | D101: 26
A102: 2018-11-28 | B102: 48 | C102: =IF(D101*D$16/100<=0,0,IF(D101*D$16/100<1,1,ROUND(D101*D$16/100,0))) -> 1 | D102: 25
A103: 2018-12-08 | B103: 49 | C103: =IF(D102*D$16/100<=0,0,IF(D102*D$16/100<1,1,ROUND(D102*D$16/100,0))) -> 1 | D103: 24
A104: 2018-12-18 | B104: 51 | C104: =IF(D103*D$16/100<=0,0,IF(D103*D$16/100<1,1,ROUND(D103*D$16/100,0))) -> 1 | D104: 23
A105: 2018-12-28 | B105: 52 | C105: =IF(D104*D$16/100<=0,0,IF(D104*D$16/100<1,1,ROUND(D104*D$16/100,0))) -> 1 | D105: 22
A106: 2019-01-07 | B106: 2 | C106: =IF(D105*D$16/100<=0,0,IF(D105*D$16/100<1,1,ROUND(D105*D$16/100,0))) -> 1 | D106: 21
A107: 2019-01-17 | B107: 3 | C107: =IF(D106*D$16/100<=0,0,IF(D106*D$16/100<1,1,ROUND(D106*D$16/100,0))) -> 1 | D107: 20
A108: 2019-01-27 | B108: 4 | C108: =IF(D107*D$16/100<=0,0,IF(D107*D$16/100<1,1,ROUND(D107*D$16/100,0))) -> 1 | D108: 19
A109: 2019-02-06 | B109: 6 | C109: =IF(D108*D$16/100<=0,0,IF(D108*D$16/100<1,1,ROUND(D108*D$16/100,0))) -> 1 | D109: 18
A110: 2019-02-16 | B110: 7 | C110: =IF(D109*D$16/100<=0,0,IF(D109*D$16/100<1,1,ROUND(D109*D$16/100,0))) -> 1 | D110: 17
A111: 2019-02-26 | B111: 9 | C111: =IF(D110*D$16/100<=0,0,IF(D110*D$16/100<1,1,ROUND(D110*D$16/100,0))) -> 1 | D111: 16
A112: 2019-03-08 | B112: 10 | C112: =IF(D111*D$16/100<=0,0,IF(D111*D$16/100<1,1,ROUND(D111*D$16/100,0))) -> 1 | D112: 15
A113: 2019-03-18 | B113: 12 | C113: =IF(D112*D$16/100<=0,0,IF(D112*D$16/100<1,1,ROUND(D112*D$16/100,0))) -> 1 | D113: 14
A114: 2019-03-28 | B114: 13 | C114: =IF(D113*D$16/100<=0,0,IF(D113*D$16/100<1,1,ROUND(D113*D$16/100,0))) -> 1 | D114: 13
A115: 2019-04-07 | B115: 14 | C115: =IF(D114*D$16/100<=0,0,IF(D114*D$16/100<1,1,ROUND(D114*D$16/100,0))) -> 1 | D115: 12
A116: 2019-04-17 | B116: 16 | C116: =IF(D115*D$16/100<=0,0,IF(D115*D$16/100<1,1,ROUND(D115*D$16/100,0))) -> 1 | D116: 11
A117: 2019-04-27 | B117: 17 | C117: =IF(D116*D$16/100<=0,0,IF(D116*D$16/100<1,1,ROUND(D116*D$16/100,0))) -> 1 | D117: 10
A118: 2019-05-07 | B118: 19 | C118: =IF(D117*D$16/100<=0,0,IF(D117*D$16/100<1,1,ROUND(D117*D$16/100,0))) -> 1 | D118: 9
A119: 2019-05-17 | B119: 20 | C119: =IF(D118*D$16/100<=0,0,IF(D118*D$16/100<1,1,ROUND(D118*D$16/100,0))) -> 1 | D119: 8
A120: 2019-05-27 | B120: 22 | C120: =IF(D119*D$16/100<=0,0,IF(D119*D$16/100<1,1,ROUND(D119*D$16/100,0))) -> 1 | D120: 7
A121: 2019-06-06 | B121: 23 | C121: =IF(D120*D$16/100<=0,0,IF(D120*D$16/100<1,1,ROUND(D120*D$16/100,0))) -> 1 | D121: 6
A122: 2019-06-16 | B122: 24 | C122: =IF(D121*D$16/100<=0,0,IF(D121*D$16/100<1,1,ROUND(D121*D$16/100,0))) -> 1 | D122: 5
A123: 2019-06-26 | B123: 26 | C123: =IF(D122*D$16/100<=0,0,IF(D122*D$16/100<1,1,ROUND(D122*D$16/100,0))) -> 1 | D123: 4
A124: 2019-07-06 | B124: 27 | C124: =IF(D123*D$16/100<=0,0,IF(D123*D$16/100<1,1,ROUND(D123*D$16/100,0))) -> 1 | D124: 3
A125: 2019-07-16 | B125: 29 | C125: =IF(D124*D$16/100<=0,0,IF(D124*D$16/100<1,1,ROUND(D124*D$16/100,0))) -> 1 | D125: 2
A126: 2019-07-26 | B126: 30 | C126: =IF(D125*D$16/100<=0,0,IF(D125*D$16/100<1,1,ROUND(D125*D$16/100,0))) -> 1 | D126: 1
A127: 2019-08-05 | B127: 32 | C127: =IF(D126*D$16/100<=0,0,IF(D126*D$16/100<1,1,ROUND(D126*D$16/100,0))) -> 1 | D127: 0
A128: 2019-08-15 | B128: 33 | C128: =IF(D127*D$16/100<=0,0,IF(D127*D$16/100<1,1,ROUND(D127*D$16/100,0))) -> 0 | D128: 0
A129: 2019-08-25 | B129: 34 | C129: =IF(D128*D$16/100<=0,0,IF(D128*D$16/100<1,1,ROUND(D128*D$16/100,0))) -> 0 | D129: 0
A130: 2019-09-04 | B130: 36 | C130: =IF(D129*D$16/100<=0,0,IF(D129*D$16/100<1,1,ROUND(D129*D$16/100,0))) -> 0 | D130: 0
A131: 2019-09-14 | B131: 37 | C131: =IF(D130*D$16/100<=0,0,IF(D130*D$16/100<1,1,ROUND(D130*D$16/100,0))) -> 0 | D131: 0
A132: 2019-09-24 | B132: 39 | C132: =IF(D131*D$16/100<=0,0,IF(D131*D$16/100<1,1,ROUND(D131*D$16/100,0))) -> 0 | D132: 0
A133: 2019-10-04 | B133: 40 | C133: =IF(D132*D$16/100<=0,0,IF(D132*D$16/100<1,1,ROUND(D132*D$16/100,0))) -> 0 | D133: 0
A134: 2019-10-14 | B134: 42 | C134: =IF(D133*D$16/100<=0,0,IF(D133*D$16/100<1,1,ROUND(D133*D$16/100,0))) -> 0 | D134: 0
A135: 2019-10-24 | B135: 43 | C135: =IF(D134*D$16/100<=0,0,IF(D134*D$16/100<1,1,ROUND(D134*D$16/100,0))) -> 0 | D135: 0
A136: 2019-11-03 | B136: 44 | C136: =IF(D135*D$16/100<=0,0,IF(D135*D$16/100<1,1,ROUND(D135*D$16/100,0))) -> 0 | D136: 0
A137: 2019-11-13 | B137: 46 | C137: =IF(D136*D$16/100<=0,0,IF(D136*D$16/100<1,1,ROUND(D136*D$16/100,0))) -> 0 | D137: 0
A138: 2019-11-23 | B138: 47 | C138: =IF(D137*D$16/100<=0,0,IF(D137*D$16/100<1,1,ROUND(D137*D$16/100,0))) -> 0 | D138: 0
A139: 2019-12-03 | B139: 49 | C139: =IF(D138*D$16/100<=0,0,IF(D138*D$16/100<1,1,ROUND(D138*D$16/100,0))) -> 0 | D139: 0
A140: 2019-12-13 | B140: 50 | C140: =IF(D139*D$16/100<=0,0,IF(D139*D$16/100<1,1,ROUND(D139*D$16/100,0))) -> 0 | D140: 0
A141: 2019-12-23 | B141: 52 | C141: =IF(D140*D$16/100<=0,0,IF(D140*D$16/100<1,1,ROUND(D140*D$16/100,0))) -> 0 | D141: 0
A142: 2020-01-02 | B142: 1 | C142: =IF(D141*D$16/100<=0,0,IF(D141*D$16/100<1,1,ROUND(D141*D$16/100,0))) -> 0 | D142: 0
A143: 2020-01-12 | B143: 2 | C143: =IF(D142*D$16/100<=0,0,IF(D142*D$16/100<1,1,ROUND(D142*D$16/100,0))) -> 0 | D143: 0
A144: 2020-01-22 | B144: 4 | C144: =IF(D143*D$16/100<=0,0,IF(D143*D$16/100<1,1,ROUND(D143*D$16/100,0))) -> 0 | D144: 0
A145: 2020-02-01 | B145: 5 | C145: =IF(D144*D$16/100<=0,0,IF(D144*D$16/100<1,1,ROUND(D144*D$16/100,0))) -> 0 | D145: 0
A146: 2020-02-11 | B146: 7 | C146: =IF(D145*D$16/100<=0,0,IF(D145*D$16/100<1,1,ROUND(D145*D$16/100,0))) -> 0 | D146: 0
A147: 2020-02-21 | B147: 8 | C147: =IF(D146*D$16/100<=0,0,IF(D146*D$16/100<1,1,ROUND(D146*D$16/100,0))) -> 0 | D147: 0
A148: 2020-03-02 | B148: 10 | C148: =IF(D147*D$16/100<=0,0,IF(D147*D$16/100<1,1,ROUND(D147*D$16/100,0))) -> 0 | D148: 0
A149: 2020-03-12 | B149: 11 | C149: =IF(D148*D$16/100<=0,0,IF(D148*D$16/100<1,1,ROUND(D148*D$16/100,0))) -> 0 | D149: 0
A150: 2020-03-22 | B150: 12 | C150: =IF(D149*D$16/100<=0,0,IF(D149*D$16/100<1,1,ROUND(D149*D$16/100,0))) -> 0 | D150: 0
A151: =A150+$D$18 -> 2020-04-01 | B151: =WEEKNUM(A151,21) -> 14 | C151: =IF(D150*D$16/100<=0,0,IF(D150*D$16/100<1,1,ROUND(D150*D$16/100,0))) -> 0 | D151: 0
A152: 2020-04-11 | B152: 15 | C152: =IF(D151*D$16/100<=0,0,IF(D151*D$16/100<1,1,ROUND(D151*D$16/100,0))) -> 0 | D152: =D151-C152 -> 0
A153: 2020-04-21 | B153: 17 | C153: =IF(D152*D$16/100<=0,0,IF(D152*D$16/100<1,1,ROUND(D152*D$16/100,0))) -> 0 | D153: 0
A154: 2020-05-01 | B154: 18 | C154: =IF(D153*D$16/100<=0,0,IF(D153*D$16/100<1,1,ROUND(D153*D$16/100,0))) -> 0 | D154: 0
A155: 2020-05-11 | B155: 20 | C155: =IF(D154*D$16/100<=0,0,IF(D154*D$16/100<1,1,ROUND(D154*D$16/100,0))) -> 0 | D155: 0
A156: 2020-05-21 | B156: 21 | C156: =IF(D155*D$16/100<=0,0,IF(D155*D$16/100<1,1,ROUND(D155*D$16/100,0))) -> 0 | D156: 0
A157: 2020-05-31 | B157: 22 | C157: =IF(D156*D$16/100<=0,0,IF(D156*D$16/100<1,1,ROUND(D156*D$16/100,0))) -> 0 | D157: 0
A158: 2020-06-10 | B158: 24 | C158: =IF(D157*D$16/100<=0,0,IF(D157*D$16/100<1,1,ROUND(D157*D$16/100,0))) -> 0 | D158: 0
A159: 2020-06-20 | B159: 25 | C159: =IF(D158*D$16/100<=0,0,IF(D158*D$16/100<1,1,ROUND(D158*D$16/100,0))) -> 0 | D159: 0
A160: 2020-06-30 | B160: 27 | C160: =IF(D159*D$16/100<=0,0,IF(D159*D$16/100<1,1,ROUND(D159*D$16/100,0))) -> 0 | D160: 0
A161: 2020-07-10 | B161: 28 | C161: =IF(D160*D$16/100<=0,0,IF(D160*D$16/100<1,1,ROUND(D160*D$16/100,0))) -> 0 | D161: 0
A162: 2020-07-20 | B162: 30 | C162: =IF(D161*D$16/100<=0,0,IF(D161*D$16/100<1,1,ROUND(D161*D$16/100,0))) -> 0 | D162: 0
A163: 2020-07-30 | B163: 31 | C163: =IF(D162*D$16/100<=0,0,IF(D162*D$16/100<1,1,ROUND(D162*D$16/100,0))) -> 0 | D163: 0
A164: 2020-08-09 | B164: 32 | C164: =IF(D163*D$16/100<=0,0,IF(D163*D$16/100<1,1,ROUND(D163*D$16/100,0))) -> 0 | D164: 0
A165: 2020-08-19 | B165: 34 | C165: =IF(D164*D$16/100<=0,0,IF(D164*D$16/100<1,1,ROUND(D164*D$16/100,0))) -> 0 | D165: 0
A166: 2020-08-29 | B166: 35 | C166: =IF(D165*D$16/100<=0,0,IF(D165*D$16/100<1,1,ROUND(D165*D$16/100,0))) -> 0 | D166: 0
A167: 2020-09-08 | B167: 37 | C167: =IF(D166*D$16/100<=0,0,IF(D166*D$16/100<1,1,ROUND(D166*D$16/100,0))) -> 0 | D167: 0
A168: 2020-09-18 | B168: 38 | C168: =IF(D167*D$16/100<=0,0,IF(D167*D$16/100<1,1,ROUND(D167*D$16/100,0))) -> 0 | D168: 0
A169: 2020-09-28 | B169: 40 | C169: =IF(D168*D$16/100<=0,0,IF(D168*D$16/100<1,1,ROUND(D168*D$16/100,0))) -> 0 | D169: 0
A170: 2020-10-08 | B170: 41 | C170: =IF(D169*D$16/100<=0,0,IF(D169*D$16/100<1,1,ROUND(D169*D$16/100,0))) -> 0 | D170: 0
A171: 2020-10-18 | B171: 42 | C171: =IF(D170*D$16/100<=0,0,IF(D170*D$16/100<1,1,ROUND(D170*D$16/100,0))) -> 0 | D171: 0
A172: 2020-10-28 | B172: 44 | C172: =IF(D171*D$16/100<=0,0,IF(D171*D$16/100<1,1,ROUND(D171*D$16/100,0))) -> 0 | D172: 0
A173: 2020-11-07 | B173: 45 | C173: =IF(D172*D$16/100<=0,0,IF(D172*D$16/100<1,1,ROUND(D172*D$16/100,0))) -> 0 | D173: 0
A174: 2020-11-17 | B174: 47 | C174: =IF(D173*D$16/100<=0,0,IF(D173*D$16/100<1,1,ROUND(D173*D$16/100,0))) -> 0 | D174: 0
A175: 2020-11-27 | B175: 48 | C175: =IF(D174*D$16/100<=0,0,IF(D174*D$16/100<1,1,ROUND(D174*D$16/100,0))) -> 0 | D175: 0
A176: 2020-12-07 | B176: 50 | C176: =IF(D175*D$16/100<=0,0,IF(D175*D$16/100<1,1,ROUND(D175*D$16/100,0))) -> 0 | D176: 0
A177: 2020-12-17 | B177: 51 | C177: =IF(D176*D$16/100<=0,0,IF(D176*D$16/100<1,1,ROUND(D176*D$16/100,0))) -> 0 | D177: 0
A178: 2020-12-27 | B178: 52 | C178: =IF(D177*D$16/100<=0,0,IF(D177*D$16/100<1,1,ROUND(D177*D$16/100,0))) -> 0 | D178: 0
A179: 2021-01-06 | B179: 1 | C179: =IF(D178*D$16/100<=0,0,IF(D178*D$16/100<1,1,ROUND(D178*D$16/100,0))) -> 0 | D179: 0
A180: 2021-01-16 | B180: 2 | C180: =IF(D179*D$16/100<=0,0,IF(D179*D$16/100<1,1,ROUND(D179*D$16/100,0))) -> 0 | D180: 0
A181: 2021-01-26 | B181: 4 | C181: =IF(D180*D$16/100<=0,0,IF(D180*D$16/100<1,1,ROUND(D180*D$16/100,0))) -> 0 | D181: 0
A182: 2021-02-05 | B182: 5 | C182: =IF(D181*D$16/100<=0,0,IF(D181*D$16/100<1,1,ROUND(D181*D$16/100,0))) -> 0 | D182: 0
A183: 2021-02-15 | B183: 7 | C183: =IF(D182*D$16/100<=0,0,IF(D182*D$16/100<1,1,ROUND(D182*D$16/100,0))) -> 0 | D183: 0
A184: 2021-02-25 | B184: 8 | C184: =IF(D183*D$16/100<=0,0,IF(D183*D$16/100<1,1,ROUND(D183*D$16/100,0))) -> 0 | D184: 0
A185: 2021-03-07 | B185: 9 | C185: =IF(D184*D$16/100<=0,0,IF(D184*D$16/100<1,1,ROUND(D184*D$16/100,0))) -> 0 | D185: 0
A186: 2021-03-17 | B186: 11 | C186: =IF(D185*D$16/100<=0,0,IF(D185*D$16/100<1,1,ROUND(D185*D$16/100,0))) -> 0 | D186: 0
A187: 2021-03-27 | B187: 12 | C187: =IF(D186*D$16/100<=0,0,IF(D186*D$16/100<1,1,ROUND(D186*D$16/100,0))) -> 0 | D187: 0
A188: 2021-04-06 | B188: 14 | C188: =IF(D187*D$16/100<=0,0,IF(D187*D$16/100<1,1,ROUND(D187*D$16/100,0))) -> 0 | D188: 0
A189: 2021-04-16 | B189: 15 | C189: =IF(D188*D$16/100<=0,0,IF(D188*D$16/100<1,1,ROUND(D188*D$16/100,0))) -> 0 | D189: 0
A190: 2021-04-26 | B190: 17 | C190: =IF(D189*D$16/100<=0,0,IF(D189*D$16/100<1,1,ROUND(D189*D$16/100,0))) -> 0 | D190: 0
A191: 2021-05-06 | B191: 18 | C191: =IF(D190*D$16/100<=0,0,IF(D190*D$16/100<1,1,ROUND(D190*D$16/100,0))) -> 0 | D191: 0
A192: 2021-05-16 | B192: 19 | C192: =IF(D191*D$16/100<=0,0,IF(D191*D$16/100<1,1,ROUND(D191*D$16/100,0))) -> 0 | D192: 0
A193: 2021-05-26 | B193: 21 | C193: =IF(D192*D$16/100<=0,0,IF(D192*D$16/100<1,1,ROUND(D192*D$16/100,0))) -> 0 | D193: 0
A194: 2021-06-05 | B194: 22 | C194: =IF(D193*D$16/100<=0,0,IF(D193*D$16/100<1,1,ROUND(D193*D$16/100,0))) -> 0 | D194: 0
A195: 2021-06-15 | B195: 24 | C195: =IF(D194*D$16/100<=0,0,IF(D194*D$16/100<1,1,ROUND(D194*D$16/100,0))) -> 0 | D195: 0
A196: 2021-06-25 | B196: 25 | C196: =IF(D195*D$16/100<=0,0,IF(D195*D$16/100<1,1,ROUND(D195*D$16/100,0))) -> 0 | D196: 0
A197: 2021-07-05 | B197: 27 | C197: =IF(D196*D$16/100<=0,0,IF(D196*D$16/100<1,1,ROUND(D196*D$16/100,0))) -> 0 | D197: 0
A198: 2021-07-15 | B198: 28 | C198: =IF(D197*D$16/100<=0,0,IF(D197*D$16/100<1,1,ROUND(D197*D$16/100,0))) -> 0 | D198: 0
A199: 2021-07-25 | B199: 29 | C199: =IF(D198*D$16/100<=0,0,IF(D198*D$16/100<1,1,ROUND(D198*D$16/100,0))) -> 0 | D199: 0
A200: 2021-08-04 | B200: 31 | C200: =IF(D199*D$16/100<=0,0,IF(D199*D$16/100<1,1,ROUND(D199*D$16/100,0))) -> 0 | D200: 0
A201: 2021-08-14 | B201: 32 | C201: =IF(D200*D$16/100<=0,0,IF(D200*D$16/100<1,1,ROUND(D200*D$16/100,0))) -> 0 | D201: 0
A202: 2021-08-24 | B202: 34 | C202: =IF(D201*D$16/100<=0,0,IF(D201*D$16/100<1,1,ROUND(D201*D$16/100,0))) -> 0 | D202: 0
A203: 2021-09-03 | B203: 35 | C203: =IF(D202*D$16/100<=0,0,IF(D202*D$16/100<1,1,ROUND(D202*D$16/100,0))) -> 0 | D203: 0
A204: 2021-09-13 | B204: 37 | C204: =IF(D203*D$16/100<=0,0,IF(D203*D$16/100<1,1,ROUND(D203*D$16/100,0))) -> 0 | D204: 0
A205: 2021-09-23 | B205: 38 | C205: =IF(D204*D$16/100<=0,0,IF(D204*D$16/100<1,1,ROUND(D204*D$16/100,0))) -> 0 | D205: 0
A206: 2021-10-03 | B206: 39 | C206: =IF(D205*D$16/100<=0,0,IF(D205*D$16/100<1,1,ROUND(D205*D$16/100,0))) -> 0 | D206: 0
A207: 2021-10-13 | B207: 41 | C207: =IF(D206*D$16/100<=0,0,IF(D206*D$16/100<1,1,ROUND(D206*D$16/100,0))) -> 0 | D207: 0
... 42 more rows

Sheet By_Weight
A1: This spreadsheet is designed to provide correct tapering for the reduction of Cymbalta following the guidelines
A2: recommended by the Facebook Group 'Cymbalta Hurts Worse'. To use this spreadsheet effectively please
A3: fill in the coloured spaces below. The number of beads Removed, Beads Consumed, Mg Removed, Mg Consumed
A4: will all update automatically. Then simply follow the correct column, reducing each week until you reach zero.
A5: You can ignore the weeks following zero.
A7: Please note the values currently in the cells are for example only. Your values will most likely be different.
A9: Note that you can fill in either the average measured mg weight from 3 capsules if using the scale method
A10: or the average number of beads from 3 capsules if using the bead method: you do not have to enter both.
A12: Then enter the desired taper rate. Note that the maximum recommended rate is 10%.
A14: Average measured weight from 3 capsules: | D14: 300
A16: Desired taper reduction rate: | D16: 2.5
A18: Number of days between tapers: | D18: 14
A20: Date | B20: Week Number | C20: Mg Removed | D20: Mg Consumed
A21: 2016-09-09 | B21: =WEEKNUM(A21,21) -> 36 | C21: =D14*D16/100 -> 7.5 | D21: =D14-C21 -> 292.5
A22: =A21+$D$18 -> 2016-09-23 | B22: =WEEKNUM(A22,21) -> 38 | C22: =IF(D21*D$16/100<=0,0,IF(D21*D$16/100<0.025,0.025,D21*D$16/100)) -> 7.3125 | D22: =IF(D21-C22<=0,0,D21-C22) -> 285.1875
A23: =A22+$D$18 -> 2016-10-07 | B23: 40 | C23: =IF(D22*D$16/100<=0,0,IF(D22*D$16/100<0.025,0.025,D22*D$16/100)) -> 7.1296875 | D23: 278.0578125
A24: 2016-10-21 | B24: 42 | C24: =IF(D23*D$16/100<=0,0,IF(D23*D$16/100<0.025,0.025,D23*D$16/100)) -> 6.951445312 | D24: 271.1063672
A25: 2016-11-04 | B25: 44 | C25: =IF(D24*D$16/100<=0,0,IF(D24*D$16/100<0.025,0.025,D24*D$16/100)) -> 6.77765918 | D25: 264.328708
A26: 2016-11-18 | B26: 46 | C26: =IF(D25*D$16/100<=0,0,IF(D25*D$16/100<0.025,0.025,D25*D$16/100)) -> 6.6082177 | D26: 257.7204903
A27: 2016-12-02 | B27: 48 | C27: =IF(D26*D$16/100<=0,0,IF(D26*D$16/100<0.025,0.025,D26*D$16/100)) -> 6.443012258 | D27: 251.277478
A28: 2016-12-16 | B28: 50 | C28: =IF(D27*D$16/100<=0,0,IF(D27*D$16/100<0.025,0.025,D27*D$16/100)) -> 6.281936951 | D28: 244.9955411
A29: 2016-12-30 | B29: 52 | C29: =IF(D28*D$16/100<=0,0,IF(D28*D$16/100<0.025,0.025,D28*D$16/100)) -> 6.124888527 | D29: 238.8706526
A30: 2017-01-13 | B30: 2 | C30: =IF(D29*D$16/100<=0,0,IF(D29*D$16/100<0.025,0.025,D29*D$16/100)) -> 5.971766314 | D30: 232.8988863
A31: 2017-01-27 | B31: 4 | C31: =IF(D30*D$16/100<=0,0,IF(D30*D$16/100<0.025,0.025,D30*D$16/100)) -> 5.822472156 | D31: 227.0764141
A32: 2017-02-10 | B32: 6 | C32: =IF(D31*D$16/100<=0,0,IF(D31*D$16/100<0.025,0.025,D31*D$16/100)) -> 5.676910353 | D32: 221.3995037
A33: 2017-02-24 | B33: 8 | C33: =IF(D32*D$16/100<=0,0,IF(D32*D$16/100<0.025,0.025,D32*D$16/100)) -> 5.534987594 | D33: 215.8645162
A34: 2017-03-10 | B34: 10 | C34: =IF(D33*D$16/100<=0,0,IF(D33*D$16/100<0.025,0.025,D33*D$16/100)) -> 5.396612904 | D34: 210.4679033
A35: 2017-03-24 | B35: 12 | C35: =IF(D34*D$16/100<=0,0,IF(D34*D$16/100<0.025,0.025,D34*D$16/100)) -> 5.261697581 | D35: 205.2062057
A36: 2017-04-07 | B36: 14 | C36: =IF(D35*D$16/100<=0,0,IF(D35*D$16/100<0.025,0.025,D35*D$16/100)) -> 5.130155142 | D36: 200.0760505
A37: 2017-04-21 | B37: 16 | C37: =IF(D36*D$16/100<=0,0,IF(D36*D$16/100<0.025,0.025,D36*D$16/100)) -> 5.001901263 | D37: 195.0741493
A38: 2017-05-05 | B38: 18 | C38: =IF(D37*D$16/100<=0,0,IF(D37*D$16/100<0.025,0.025,D37*D$16/100)) -> 4.876853732 | D38: 190.1972955
A39: 2017-05-19 | B39: 20 | C39: =IF(D38*D$16/100<=0,0,IF(D38*D$16/100<0.025,0.025,D38*D$16/100)) -> 4.754932388 | D39: 185.4423631
A40: 2017-06-02 | B40: 22 | C40: =IF(D39*D$16/100<=0,0,IF(D39*D$16/100<0.025,0.025,D39*D$16/100)) -> 4.636059079 | D40: 180.8063041
A41: 2017-06-16 | B41: 24 | C41: =IF(D40*D$16/100<=0,0,IF(D40*D$16/100<0.025,0.025,D40*D$16/100)) -> 4.520157602 | D41: 176.2861465
A42: 2017-06-30 | B42: 26 | C42: =IF(D41*D$16/100<=0,0,IF(D41*D$16/100<0.025,0.025,D41*D$16/100)) -> 4.407153662 | D42: 171.8789928
A43: 2017-07-14 | B43: 28 | C43: =IF(D42*D$16/100<=0,0,IF(D42*D$16/100<0.025,0.025,D42*D$16/100)) -> 4.29697482 | D43: 167.582018
A44: 2017-07-28 | B44: 30 | C44: =IF(D43*D$16/100<=0,0,IF(D43*D$16/100<0.025,0.025,D43*D$16/100)) -> 4.18955045 | D44: 163.3924675
A45: 2017-08-11 | B45: 32 | C45: =IF(D44*D$16/100<=0,0,IF(D44*D$16/100<0.025,0.025,D44*D$16/100)) -> 4.084811688 | D45: 159.3076558
A46: 2017-08-25 | B46: 34 | C46: =IF(D45*D$16/100<=0,0,IF(D45*D$16/100<0.025,0.025,D45*D$16/100)) -> 3.982691396 | D46: 155.3249644
A47: 2017-09-08 | B47: 36 | C47: =IF(D46*D$16/100<=0,0,IF(D46*D$16/100<0.025,0.025,D46*D$16/100)) -> 3.883124111 | D47: 151.4418403
A48: 2017-09-22 | B48: 38 | C48: =IF(D47*D$16/100<=0,0,IF(D47*D$16/100<0.025,0.025,D47*D$16/100)) -> 3.786046008 | D48: 147.6557943
A49: 2017-10-06 | B49: 40 | C49: =IF(D48*D$16/100<=0,0,IF(D48*D$16/100<0.025,0.025,D48*D$16/100)) -> 3.691394858 | D49: 143.9643995
A50: 2017-10-20 | B50: 42 | C50: =IF(D49*D$16/100<=0,0,IF(D49*D$16/100<0.025,0.025,D49*D$16/100)) -> 3.599109987 | D50: 140.3652895
A51: 2017-11-03 | B51: 44 | C51: =IF(D50*D$16/100<=0,0,IF(D50*D$16/100<0.025,0.025,D50*D$16/100)) -> 3.509132237 | D51: 136.8561572
A52: 2017-11-17 | B52: 46 | C52: =IF(D51*D$16/100<=0,0,IF(D51*D$16/100<0.025,0.025,D51*D$16/100)) -> 3.421403931 | D52: 133.4347533
A53: 2017-12-01 | B53: 48 | C53: =IF(D52*D$16/100<=0,0,IF(D52*D$16/100<0.025,0.025,D52*D$16/100)) -> 3.335868833 | D53: 130.0988845
A54: 2017-12-15 | B54: 50 | C54: =IF(D53*D$16/100<=0,0,IF(D53*D$16/100<0.025,0.025,D53*D$16/100)) -> 3.252472112 | D54: 126.8464124
A55: 2017-12-29 | B55: 52 | C55: =IF(D54*D$16/100<=0,0,IF(D54*D$16/100<0.025,0.025,D54*D$16/100)) -> 3.171160309 | D55: 123.6752521
A56: 2018-01-12 | B56: 2 | C56: =IF(D55*D$16/100<=0,0,IF(D55*D$16/100<0.025,0.025,D55*D$16/100)) -> 3.091881302 | D56: 120.5833708
A57: 2018-01-26 | B57: 4 | C57: =IF(D56*D$16/100<=0,0,IF(D56*D$16/100<0.025,0.025,D56*D$16/100)) -> 3.014584269 | D57: 117.5687865
A58: 2018-02-09 | B58: 6 | C58: =IF(D57*D$16/100<=0,0,IF(D57*D$16/100<0.025,0.025,D57*D$16/100)) -> 2.939219662 | D58: 114.6295668
A59: 2018-02-23 | B59: 8 | C59: =IF(D58*D$16/100<=0,0,IF(D58*D$16/100<0.025,0.025,D58*D$16/100)) -> 2.865739171 | D59: 111.7638277
A60: 2018-03-09 | B60: 10 | C60: =IF(D59*D$16/100<=0,0,IF(D59*D$16/100<0.025,0.025,D59*D$16/100)) -> 2.794095691 | D60: 108.969732
A61: 2018-03-23 | B61: 12 | C61: =IF(D60*D$16/100<=0,0,IF(D60*D$16/100<0.025,0.025,D60*D$16/100)) -> 2.724243299 | D61: 106.2454887
A62: 2018-04-06 | B62: 14 | C62: =IF(D61*D$16/100<=0,0,IF(D61*D$16/100<0.025,0.025,D61*D$16/100)) -> 2.656137217 | D62: 103.5893515
A63: 2018-04-20 | B63: 16 | C63: =IF(D62*D$16/100<=0,0,IF(D62*D$16/100<0.025,0.025,D62*D$16/100)) -> 2.589733786 | D63: 100.9996177
A64: 2018-05-04 | B64: 18 | C64: =IF(D63*D$16/100<=0,0,IF(D63*D$16/100<0.025,0.025,D63*D$16/100)) -> 2.524990442 | D64: 98.47462722
A65: 2018-05-18 | B65: 20 | C65: =IF(D64*D$16/100<=0,0,IF(D64*D$16/100<0.025,0.025,D64*D$16/100)) -> 2.461865681 | D65: 96.01276154
A66: 2018-06-01 | B66: 22 | C66: =IF(D65*D$16/100<=0,0,IF(D65*D$16/100<0.025,0.025,D65*D$16/100)) -> 2.400319039 | D66: 93.6124425
A67: 2018-06-15 | B67: 24 | C67: =IF(D66*D$16/100<=0,0,IF(D66*D$16/100<0.025,0.025,D66*D$16/100)) -> 2.340311063 | D67: 91.27213144
A68: 2018-06-29 | B68: 26 | C68: =IF(D67*D$16/100<=0,0,IF(D67*D$16/100<0.025,0.025,D67*D$16/100)) -> 2.281803286 | D68: 88.99032815
A69: 2018-07-13 | B69: 28 | C69: =IF(D68*D$16/100<=0,0,IF(D68*D$16/100<0.025,0.025,D68*D$16/100)) -> 2.224758204 | D69: 86.76556995
A70: 2018-07-27 | B70: 30 | C70: =IF(D69*D$16/100<=0,0,IF(D69*D$16/100<0.025,0.025,D69*D$16/100)) -> 2.169139249 | D70: 84.5964307
A71: 2018-08-10 | B71: 32 | C71: =IF(D70*D$16/100<=0,0,IF(D70*D$16/100<0.025,0.025,D70*D$16/100)) -> 2.114910768 | D71: 82.48151993
A72: 2018-08-24 | B72: 34 | C72: =IF(D71*D$16/100<=0,0,IF(D71*D$16/100<0.025,0.025,D71*D$16/100)) -> 2.062037998 | D72: 80.41948194
A73: 2018-09-07 | B73: 36 | C73: =IF(D72*D$16/100<=0,0,IF(D72*D$16/100<0.025,0.025,D72*D$16/100)) -> 2.010487048 | D73: 78.40899489
A74: 2018-09-21 | B74: 38 | C74: =IF(D73*D$16/100<=0,0,IF(D73*D$16/100<0.025,0.025,D73*D$16/100)) -> 1.960224872 | D74: 76.44877002
A75: 2018-10-05 | B75: 40 | C75: =IF(D74*D$16/100<=0,0,IF(D74*D$16/100<0.025,0.025,D74*D$16/100)) -> 1.91121925 | D75: 74.53755077
A76: 2018-10-19 | B76: 42 | C76: =IF(D75*D$16/100<=0,0,IF(D75*D$16/100<0.025,0.025,D75*D$16/100)) -> 1.863438769 | D76: 72.674112
A77: 2018-11-02 | B77: 44 | C77: =IF(D76*D$16/100<=0,0,IF(D76*D$16/100<0.025,0.025,D76*D$16/100)) -> 1.8168528 | D77: 70.8572592
A78: 2018-11-16 | B78: 46 | C78: =IF(D77*D$16/100<=0,0,IF(D77*D$16/100<0.025,0.025,D77*D$16/100)) -> 1.77143148 | D78: 69.08582772
A79: 2018-11-30 | B79: 48 | C79: =IF(D78*D$16/100<=0,0,IF(D78*D$16/100<0.025,0.025,D78*D$16/100)) -> 1.727145693 | D79: 67.35868202
A80: 2018-12-14 | B80: 50 | C80: =IF(D79*D$16/100<=0,0,IF(D79*D$16/100<0.025,0.025,D79*D$16/100)) -> 1.683967051 | D80: 65.67471497
A81: 2018-12-28 | B81: 52 | C81: =IF(D80*D$16/100<=0,0,IF(D80*D$16/100<0.025,0.025,D80*D$16/100)) -> 1.641867874 | D81: 64.0328471
A82: 2019-01-11 | B82: 2 | C82: =IF(D81*D$16/100<=0,0,IF(D81*D$16/100<0.025,0.025,D81*D$16/100)) -> 1.600821177 | D82: 62.43202592
A83: 2019-01-25 | B83: 4 | C83: =IF(D82*D$16/100<=0,0,IF(D82*D$16/100<0.025,0.025,D82*D$16/100)) -> 1.560800648 | D83: 60.87122527
A84: 2019-02-08 | B84: 6 | C84: =IF(D83*D$16/100<=0,0,IF(D83*D$16/100<0.025,0.025,D83*D$16/100)) -> 1.521780632 | D84: 59.34944464
A85: 2019-02-22 | B85: 8 | C85: =IF(D84*D$16/100<=0,0,IF(D84*D$16/100<0.025,0.025,D84*D$16/100)) -> 1.483736116 | D85: 57.86570853
A86: 2019-03-08 | B86: =WEEKNUM(A86,21) -> 10 | C86: =IF(D85*D$16/100<=0,0,IF(D85*D$16/100<0.025,0.025,D85*D$16/100)) -> 1.446642713 | D86: =IF(D85-C86<=0,0,D85-C86) -> 56.41906581
A87: =A86+$D$18 -> 2019-03-22 | B87: 12 | C87: =IF(D86*D$16/100<=0,0,IF(D86*D$16/100<0.025,0.025,D86*D$16/100)) -> 1.410476645 | D87: 55.00858917
A88: 2019-04-05 | B88: 14 | C88: =IF(D87*D$16/100<=0,0,IF(D87*D$16/100<0.025,0.025,D87*D$16/100)) -> 1.375214729 | D88: 53.63337444
A89: 2019-04-19 | B89: 16 | C89: =IF(D88*D$16/100<=0,0,IF(D88*D$16/100<0.025,0.025,D88*D$16/100)) -> 1.340834361 | D89: 52.29254008
A90: 2019-05-03 | B90: 18 | C90: =IF(D89*D$16/100<=0,0,IF(D89*D$16/100<0.025,0.025,D89*D$16/100)) -> 1.307313502 | D90: 50.98522657
A91: 2019-05-17 | B91: 20 | C91: =IF(D90*D$16/100<=0,0,IF(D90*D$16/100<0.025,0.025,D90*D$16/100)) -> 1.274630664 | D91: 49.71059591
A92: 2019-05-31 | B92: 22 | C92: =IF(D91*D$16/100<=0,0,IF(D91*D$16/100<0.025,0.025,D91*D$16/100)) -> 1.242764898 | D92: 48.46783101
A93: 2019-06-14 | B93: 24 | C93: =IF(D92*D$16/100<=0,0,IF(D92*D$16/100<0.025,0.025,D92*D$16/100)) -> 1.211695775 | D93: 47.25613524
A94: 2019-06-28 | B94: 26 | C94: =IF(D93*D$16/100<=0,0,IF(D93*D$16/100<0.025,0.025,D93*D$16/100)) -> 1.181403381 | D94: 46.07473186
A95: 2019-07-12 | B95: 28 | C95: =IF(D94*D$16/100<=0,0,IF(D94*D$16/100<0.025,0.025,D94*D$16/100)) -> 1.151868296 | D95: 44.92286356
A96: 2019-07-26 | B96: 30 | C96: =IF(D95*D$16/100<=0,0,IF(D95*D$16/100<0.025,0.025,D95*D$16/100)) -> 1.123071589 | D96: 43.79979197
A97: 2019-08-09 | B97: 32 | C97: =IF(D96*D$16/100<=0,0,IF(D96*D$16/100<0.025,0.025,D96*D$16/100)) -> 1.094994799 | D97: 42.70479717
A98: 2019-08-23 | B98: 34 | C98: =IF(D97*D$16/100<=0,0,IF(D97*D$16/100<0.025,0.025,D97*D$16/100)) -> 1.067619929 | D98: 41.63717724
A99: 2019-09-06 | B99: 36 | C99: =IF(D98*D$16/100<=0,0,IF(D98*D$16/100<0.025,0.025,D98*D$16/100)) -> 1.040929431 | D99: 40.59624781
A100: 2019-09-20 | B100: 38 | C100: =IF(D99*D$16/100<=0,0,IF(D99*D$16/100<0.025,0.025,D99*D$16/100)) -> 1.014906195 | D100: 39.58134162
A101: 2019-10-04 | B101: 40 | C101: =IF(D100*D$16/100<=0,0,IF(D100*D$16/100<0.025,0.025,D100*D$16/100)) -> 0.9895335404 | D101: 38.59180808
A102: 2019-10-18 | B102: 42 | C102: =IF(D101*D$16/100<=0,0,IF(D101*D$16/100<0.025,0.025,D101*D$16/100)) -> 0.9647952019 | D102: 37.62701287
A103: 2019-11-01 | B103: 44 | C103: =IF(D102*D$16/100<=0,0,IF(D102*D$16/100<0.025,0.025,D102*D$16/100)) -> 0.9406753218 | D103: 36.68633755
A104: 2019-11-15 | B104: 46 | C104: =IF(D103*D$16/100<=0,0,IF(D103*D$16/100<0.025,0.025,D103*D$16/100)) -> 0.9171584388 | D104: 35.76917911
A105: 2019-11-29 | B105: 48 | C105: =IF(D104*D$16/100<=0,0,IF(D104*D$16/100<0.025,0.025,D104*D$16/100)) -> 0.8942294778 | D105: 34.87494964
A106: 2019-12-13 | B106: 50 | C106: =IF(D105*D$16/100<=0,0,IF(D105*D$16/100<0.025,0.025,D105*D$16/100)) -> 0.8718737409 | D106: 34.00307589
A107: 2019-12-27 | B107: 52 | C107: =IF(D106*D$16/100<=0,0,IF(D106*D$16/100<0.025,0.025,D106*D$16/100)) -> 0.8500768974 | D107: 33.152999
A108: 2020-01-10 | B108: 2 | C108: =IF(D107*D$16/100<=0,0,IF(D107*D$16/100<0.025,0.025,D107*D$16/100)) -> 0.8288249749 | D108: 32.32417402
A109: 2020-01-24 | B109: 4 | C109: =IF(D108*D$16/100<=0,0,IF(D108*D$16/100<0.025,0.025,D108*D$16/100)) -> 0.8081043506 | D109: 31.51606967
A110: 2020-02-07 | B110: 6 | C110: =IF(D109*D$16/100<=0,0,IF(D109*D$16/100<0.025,0.025,D109*D$16/100)) -> 0.7879017418 | D110: 30.72816793
A111: 2020-02-21 | B111: 8 | C111: =IF(D110*D$16/100<=0,0,IF(D110*D$16/100<0.025,0.025,D110*D$16/100)) -> 0.7682041982 | D111: 29.95996373
A112: 2020-03-06 | B112: 10 | C112: =IF(D111*D$16/100<=0,0,IF(D111*D$16/100<0.025,0.025,D111*D$16/100)) -> 0.7489990933 | D112: 29.21096464
A113: 2020-03-20 | B113: 12 | C113: =IF(D112*D$16/100<=0,0,IF(D112*D$16/100<0.025,0.025,D112*D$16/100)) -> 0.730274116 | D113: 28.48069052
A114: 2020-04-03 | B114: 14 | C114: =IF(D113*D$16/100<=0,0,IF(D113*D$16/100<0.025,0.025,D113*D$16/100)) -> 0.7120172631 | D114: 27.76867326
A115: 2020-04-17 | B115: 16 | C115: =IF(D114*D$16/100<=0,0,IF(D114*D$16/100<0.025,0.025,D114*D$16/100)) -> 0.6942168315 | D115: 27.07445643
A116: 2020-05-01 | B116: 18 | C116: =IF(D115*D$16/100<=0,0,IF(D115*D$16/100<0.025,0.025,D115*D$16/100)) -> 0.6768614107 | D116: 26.39759502
A117: 2020-05-15 | B117: 20 | C117: =IF(D116*D$16/100<=0,0,IF(D116*D$16/100<0.025,0.025,D116*D$16/100)) -> 0.6599398754 | D117: 25.73765514
A118: 2020-05-29 | B118: 22 | C118: =IF(D117*D$16/100<=0,0,IF(D117*D$16/100<0.025,0.025,D117*D$16/100)) -> 0.6434413785 | D118: 25.09421376
A119: 2020-06-12 | B119: 24 | C119: =IF(D118*D$16/100<=0,0,IF(D118*D$16/100<0.025,0.025,D118*D$16/100)) -> 0.6273553441 | D119: 24.46685842
A120: 2020-06-26 | B120: 26 | C120: =IF(D119*D$16/100<=0,0,IF(D119*D$16/100<0.025,0.025,D119*D$16/100)) -> 0.6116714605 | D120: 23.85518696
A121: 2020-07-10 | B121: 28 | C121: =IF(D120*D$16/100<=0,0,IF(D120*D$16/100<0.025,0.025,D120*D$16/100)) -> 0.596379674 | D121: 23.25880728
A122: 2020-07-24 | B122: 30 | C122: =IF(D121*D$16/100<=0,0,IF(D121*D$16/100<0.025,0.025,D121*D$16/100)) -> 0.5814701821 | D122: 22.6773371
A123: 2020-08-07 | B123: 32 | C123: =IF(D122*D$16/100<=0,0,IF(D122*D$16/100<0.025,0.025,D122*D$16/100)) -> 0.5669334276 | D123: 22.11040367
A124: 2020-08-21 | B124: 34 | C124: =IF(D123*D$16/100<=0,0,IF(D123*D$16/100<0.025,0.025,D123*D$16/100)) -> 0.5527600919 | D124: 21.55764358
A125: 2020-09-04 | B125: 36 | C125: =IF(D124*D$16/100<=0,0,IF(D124*D$16/100<0.025,0.025,D124*D$16/100)) -> 0.5389410896 | D125: 21.01870249
A126: 2020-09-18 | B126: 38 | C126: =IF(D125*D$16/100<=0,0,IF(D125*D$16/100<0.025,0.025,D125*D$16/100)) -> 0.5254675623 | D126: 20.49323493
A127: 2020-10-02 | B127: 40 | C127: =IF(D126*D$16/100<=0,0,IF(D126*D$16/100<0.025,0.025,D126*D$16/100)) -> 0.5123308733 | D127: 19.98090406
A128: 2020-10-16 | B128: 42 | C128: =IF(D127*D$16/100<=0,0,IF(D127*D$16/100<0.025,0.025,D127*D$16/100)) -> 0.4995226014 | D128: 19.48138146
A129: 2020-10-30 | B129: 44 | C129: =IF(D128*D$16/100<=0,0,IF(D128*D$16/100<0.025,0.025,D128*D$16/100)) -> 0.4870345364 | D129: 18.99434692
A130: 2020-11-13 | B130: 46 | C130: =IF(D129*D$16/100<=0,0,IF(D129*D$16/100<0.025,0.025,D129*D$16/100)) -> 0.474858673 | D130: 18.51948825
A131: 2020-11-27 | B131: 48 | C131: =IF(D130*D$16/100<=0,0,IF(D130*D$16/100<0.025,0.025,D130*D$16/100)) -> 0.4629872062 | D131: 18.05650104
A132: 2020-12-11 | B132: 50 | C132: =IF(D131*D$16/100<=0,0,IF(D131*D$16/100<0.025,0.025,D131*D$16/100)) -> 0.451412526 | D132: 17.60508851
A133: 2020-12-25 | B133: 52 | C133: =IF(D132*D$16/100<=0,0,IF(D132*D$16/100<0.025,0.025,D132*D$16/100)) -> 0.4401272129 | D133: 17.1649613
A134: 2021-01-08 | B134: 1 | C134: =IF(D133*D$16/100<=0,0,IF(D133*D$16/100<0.025,0.025,D133*D$16/100)) -> 0.4291240325 | D134: 16.73583727
A135: 2021-01-22 | B135: 3 | C135: =IF(D134*D$16/100<=0,0,IF(D134*D$16/100<0.025,0.025,D134*D$16/100)) -> 0.4183959317 | D135: 16.31744134
A136: 2021-02-05 | B136: 5 | C136: =IF(D135*D$16/100<=0,0,IF(D135*D$16/100<0.025,0.025,D135*D$16/100)) -> 0.4079360334 | D136: 15.9095053
A137: 2021-02-19 | B137: 7 | C137: =IF(D136*D$16/100<=0,0,IF(D136*D$16/100<0.025,0.025,D136*D$16/100)) -> 0.3977376326 | D137: 15.51176767
A138: 2021-03-05 | B138: 9 | C138: =IF(D137*D$16/100<=0,0,IF(D137*D$16/100<0.025,0.025,D137*D$16/100)) -> 0.3877941918 | D138: 15.12397348
A139: 2021-03-19 | B139: 11 | C139: =IF(D138*D$16/100<=0,0,IF(D138*D$16/100<0.025,0.025,D138*D$16/100)) -> 0.378099337 | D139: 14.74587414
A140: 2021-04-02 | B140: 13 | C140: =IF(D139*D$16/100<=0,0,IF(D139*D$16/100<0.025,0.025,D139*D$16/100)) -> 0.3686468536 | D140: 14.37722729
A141: 2021-04-16 | B141: 15 | C141: =IF(D140*D$16/100<=0,0,IF(D140*D$16/100<0.025,0.025,D140*D$16/100)) -> 0.3594306822 | D141: 14.01779661
A142: 2021-04-30 | B142: 17 | C142: =IF(D141*D$16/100<=0,0,IF(D141*D$16/100<0.025,0.025,D141*D$16/100)) -> 0.3504449152 | D142: 13.66735169
A143: 2021-05-14 | B143: 19 | C143: =IF(D142*D$16/100<=0,0,IF(D142*D$16/100<0.025,0.025,D142*D$16/100)) -> 0.3416837923 | D143: 13.3256679
A144: 2021-05-28 | B144: 21 | C144: =IF(D143*D$16/100<=0,0,IF(D143*D$16/100<0.025,0.025,D143*D$16/100)) -> 0.3331416975 | D144: 12.9925262
A145: 2021-06-11 | B145: 23 | C145: =IF(D144*D$16/100<=0,0,IF(D144*D$16/100<0.025,0.025,D144*D$16/100)) -> 0.3248131551 | D145: 12.66771305
A146: 2021-06-25 | B146: 25 | C146: =IF(D145*D$16/100<=0,0,IF(D145*D$16/100<0.025,0.025,D145*D$16/100)) -> 0.3166928262 | D146: 12.35102022
A147: 2021-07-09 | B147: 27 | C147: =IF(D146*D$16/100<=0,0,IF(D146*D$16/100<0.025,0.025,D146*D$16/100)) -> 0.3087755055 | D147: 12.04224472
A148: 2021-07-23 | B148: 29 | C148: =IF(D147*D$16/100<=0,0,IF(D147*D$16/100<0.025,0.025,D147*D$16/100)) -> 0.3010561179 | D148: 11.7411886
A149: 2021-08-06 | B149: 31 | C149: =IF(D148*D$16/100<=0,0,IF(D148*D$16/100<0.025,0.025,D148*D$16/100)) -> 0.2935297149 | D149: 11.44765888
A150: 2021-08-20 | B150: =WEEKNUM(A150,21) -> 33 | C150: =IF(D149*D$16/100<=0,0,IF(D149*D$16/100<0.025,0.025,D149*D$16/100)) -> 0.2861914721 | D150: =IF(D149-C150<=0,0,D149-C150) -> 11.16146741
A151: =A150+$D$18 -> 2021-09-03 | B151: 35 | C151: =IF(D150*D$16/100<=0,0,IF(D150*D$16/100<0.025,0.025,D150*D$16/100)) -> 0.2790366853 | D151: 10.88243073
A152: 2021-09-17 | B152: 37 | C152: =IF(D151*D$16/100<=0,0,IF(D151*D$16/100<0.025,0.025,D151*D$16/100)) -> 0.2720607681 | D152: 10.61036996
A153: 2021-10-01 | B153: 39 | C153: =IF(D152*D$16/100<=0,0,IF(D152*D$16/100<0.025,0.025,D152*D$16/100)) -> 0.2652592489 | D153: 10.34511071
A154: 2021-10-15 | B154: 41 | C154: =IF(D153*D$16/100<=0,0,IF(D153*D$16/100<0.025,0.025,D153*D$16/100)) -> 0.2586277677 | D154: 10.08648294
A155: 2021-10-29 | B155: 43 | C155: =IF(D154*D$16/100<=0,0,IF(D154*D$16/100<0.025,0.025,D154*D$16/100)) -> 0.2521620735 | D155: 9.834320867
A156: 2021-11-12 | B156: 45 | C156: =IF(D155*D$16/100<=0,0,IF(D155*D$16/100<0.025,0.025,D155*D$16/100)) -> 0.2458580217 | D156: 9.588462845
A157: 2021-11-26 | B157: 47 | C157: =IF(D156*D$16/100<=0,0,IF(D156*D$16/100<0.025,0.025,D156*D$16/100)) -> 0.2397115711 | D157: 9.348751274
A158: 2021-12-10 | B158: 49 | C158: =IF(D157*D$16/100<=0,0,IF(D157*D$16/100<0.025,0.025,D157*D$16/100)) -> 0.2337187819 | D158: 9.115032492
A159: 2021-12-24 | B159: 51 | C159: =IF(D158*D$16/100<=0,0,IF(D158*D$16/100<0.025,0.025,D158*D$16/100)) -> 0.2278758123 | D159: 8.88715668
A160: 2022-01-07 | B160: 1 | C160: =IF(D159*D$16/100<=0,0,IF(D159*D$16/100<0.025,0.025,D159*D$16/100)) -> 0.222178917 | D160: 8.664977763
A161: 2022-01-21 | B161: 3 | C161: =IF(D160*D$16/100<=0,0,IF(D160*D$16/100<0.025,0.025,D160*D$16/100)) -> 0.2166244441 | D161: 8.448353319
A162: 2022-02-04 | B162: 5 | C162: =IF(D161*D$16/100<=0,0,IF(D161*D$16/100<0.025,0.025,D161*D$16/100)) -> 0.211208833 | D162: 8.237144486
A163: 2022-02-18 | B163: 7 | C163: =IF(D162*D$16/100<=0,0,IF(D162*D$16/100<0.025,0.025,D162*D$16/100)) -> 0.2059286121 | D163: 8.031215874
A164: 2022-03-04 | B164: 9 | C164: =IF(D163*D$16/100<=0,0,IF(D163*D$16/100<0.025,0.025,D163*D$16/100)) -> 0.2007803968 | D164: 7.830435477
A165: 2022-03-18 | B165: 11 | C165: =IF(D164*D$16/100<=0,0,IF(D164*D$16/100<0.025,0.025,D164*D$16/100)) -> 0.1957608869 | D165: 7.63467459
A166: 2022-04-01 | B166: 13 | C166: =IF(D165*D$16/100<=0,0,IF(D165*D$16/100<0.025,0.025,D165*D$16/100)) -> 0.1908668647 | D166: 7.443807725
A167: 2022-04-15 | B167: 15 | C167: =IF(D166*D$16/100<=0,0,IF(D166*D$16/100<0.025,0.025,D166*D$16/100)) -> 0.1860951931 | D167: 7.257712532
A168: 2022-04-29 | B168: 17 | C168: =IF(D167*D$16/100<=0,0,IF(D167*D$16/100<0.025,0.025,D167*D$16/100)) -> 0.1814428133 | D168: 7.076269719
A169: 2022-05-13 | B169: 19 | C169: =IF(D168*D$16/100<=0,0,IF(D168*D$16/100<0.025,0.025,D168*D$16/100)) -> 0.176906743 | D169: 6.899362976
A170: 2022-05-27 | B170: 21 | C170: =IF(D169*D$16/100<=0,0,IF(D169*D$16/100<0.025,0.025,D169*D$16/100)) -> 0.1724840744 | D170: 6.726878901
A171: 2022-06-10 | B171: 23 | C171: =IF(D170*D$16/100<=0,0,IF(D170*D$16/100<0.025,0.025,D170*D$16/100)) -> 0.1681719725 | D171: 6.558706929
A172: 2022-06-24 | B172: 25 | C172: =IF(D171*D$16/100<=0,0,IF(D171*D$16/100<0.025,0.025,D171*D$16/100)) -> 0.1639676732 | D172: 6.394739256
A173: 2022-07-08 | B173: 27 | C173: =IF(D172*D$16/100<=0,0,IF(D172*D$16/100<0.025,0.025,D172*D$16/100)) -> 0.1598684814 | D173: 6.234870774
A174: 2022-07-22 | B174: 29 | C174: =IF(D173*D$16/100<=0,0,IF(D173*D$16/100<0.025,0.025,D173*D$16/100)) -> 0.1558717694 | D174: 6.078999005
A175: 2022-08-05 | B175: 31 | C175: =IF(D174*D$16/100<=0,0,IF(D174*D$16/100<0.025,0.025,D174*D$16/100)) -> 0.1519749751 | D175: 5.92702403
A176: 2022-08-19 | B176: 33 | C176: =IF(D175*D$16/100<=0,0,IF(D175*D$16/100<0.025,0.025,D175*D$16/100)) -> 0.1481756007 | D176: 5.778848429
A177: 2022-09-02 | B177: 35 | C177: =IF(D176*D$16/100<=0,0,IF(D176*D$16/100<0.025,0.025,D176*D$16/100)) -> 0.1444712107 | D177: 5.634377218
A178: 2022-09-16 | B178: 37 | C178: =IF(D177*D$16/100<=0,0,IF(D177*D$16/100<0.025,0.025,D177*D$16/100)) -> 0.1408594305 | D178: 5.493517788
A179: 2022-09-30 | B179: 39 | C179: =IF(D178*D$16/100<=0,0,IF(D178*D$16/100<0.025,0.025,D178*D$16/100)) -> 0.1373379447 | D179: 5.356179843
A180: 2022-10-14 | B180: 41 | C180: =IF(D179*D$16/100<=0,0,IF(D179*D$16/100<0.025,0.025,D179*D$16/100)) -> 0.1339044961 | D180: 5.222275347
A181: 2022-10-28 | B181: 43 | C181: =IF(D180*D$16/100<=0,0,IF(D180*D$16/100<0.025,0.025,D180*D$16/100)) -> 0.1305568837 | D181: 5.091718463
A182: 2022-11-11 | B182: 45 | C182: =IF(D181*D$16/100<=0,0,IF(D181*D$16/100<0.025,0.025,D181*D$16/100)) -> 0.1272929616 | D182: 4.964425502
A183: 2022-11-25 | B183: 47 | C183: =IF(D182*D$16/100<=0,0,IF(D182*D$16/100<0.025,0.025,D182*D$16/100)) -> 0.1241106375 | D183: 4.840314864
A184: 2022-12-09 | B184: 49 | C184: =IF(D183*D$16/100<=0,0,IF(D183*D$16/100<0.025,0.025,D183*D$16/100)) -> 0.1210078716 | D184: 4.719306993
A185: 2022-12-23 | B185: 51 | C185: =IF(D184*D$16/100<=0,0,IF(D184*D$16/100<0.025,0.025,D184*D$16/100)) -> 0.1179826748 | D185: 4.601324318
A186: 2023-01-06 | B186: 1 | C186: =IF(D185*D$16/100<=0,0,IF(D185*D$16/100<0.025,0.025,D185*D$16/100)) -> 0.1150331079 | D186: 4.48629121
A187: 2023-01-20 | B187: 3 | C187: =IF(D186*D$16/100<=0,0,IF(D186*D$16/100<0.025,0.025,D186*D$16/100)) -> 0.1121572802 | D187: 4.37413393
A188: 2023-02-03 | B188: 5 | C188: =IF(D187*D$16/100<=0,0,IF(D187*D$16/100<0.025,0.025,D187*D$16/100)) -> 0.1093533482 | D188: 4.264780581
A189: 2023-02-17 | B189: 7 | C189: =IF(D188*D$16/100<=0,0,IF(D188*D$16/100<0.025,0.025,D188*D$16/100)) -> 0.1066195145 | D189: 4.158161067
A190: 2023-03-03 | B190: 9 | C190: =IF(D189*D$16/100<=0,0,IF(D189*D$16/100<0.025,0.025,D189*D$16/100)) -> 0.1039540267 | D190: 4.05420704
A191: 2023-03-17 | B191: 11 | C191: =IF(D190*D$16/100<=0,0,IF(D190*D$16/100<0.025,0.025,D190*D$16/100)) -> 0.101355176 | D191: 3.952851864
A192: 2023-03-31 | B192: 13 | C192: =IF(D191*D$16/100<=0,0,IF(D191*D$16/100<0.025,0.025,D191*D$16/100)) -> 0.09882129661 | D192: 3.854030568
A193: 2023-04-14 | B193: 15 | C193: =IF(D192*D$16/100<=0,0,IF(D192*D$16/100<0.025,0.025,D192*D$16/100)) -> 0.09635076419 | D193: 3.757679803
A194: 2023-04-28 | B194: 17 | C194: =IF(D193*D$16/100<=0,0,IF(D193*D$16/100<0.025,0.025,D193*D$16/100)) -> 0.09394199509 | D194: 3.663737808
A195: 2023-05-12 | B195: 19 | C195: =IF(D194*D$16/100<=0,0,IF(D194*D$16/100<0.025,0.025,D194*D$16/100)) -> 0.09159344521 | D195: 3.572144363
A196: 2023-05-26 | B196: 21 | C196: =IF(D195*D$16/100<=0,0,IF(D195*D$16/100<0.025,0.025,D195*D$16/100)) -> 0.08930360908 | D196: 3.482840754
A197: 2023-06-09 | B197: 23 | C197: =IF(D196*D$16/100<=0,0,IF(D196*D$16/100<0.025,0.025,D196*D$16/100)) -> 0.08707101885 | D197: 3.395769735
A198: 2023-06-23 | B198: 25 | C198: =IF(D197*D$16/100<=0,0,IF(D197*D$16/100<0.025,0.025,D197*D$16/100)) -> 0.08489424338 | D198: 3.310875492
A199: 2023-07-07 | B199: 27 | C199: =IF(D198*D$16/100<=0,0,IF(D198*D$16/100<0.025,0.025,D198*D$16/100)) -> 0.0827718873 | D199: 3.228103605
A200: 2023-07-21 | B200: 29 | C200: =IF(D199*D$16/100<=0,0,IF(D199*D$16/100<0.025,0.025,D199*D$16/100)) -> 0.08070259011 | D200: 3.147401014
A201: 2023-08-04 | B201: 31 | C201: =IF(D200*D$16/100<=0,0,IF(D200*D$16/100<0.025,0.025,D200*D$16/100)) -> 0.07868502536 | D201: 3.068715989
A202: 2023-08-18 | B202: 33 | C202: =IF(D201*D$16/100<=0,0,IF(D201*D$16/100<0.025,0.025,D201*D$16/100)) -> 0.07671789973 | D202: 2.991998089
A203: 2023-09-01 | B203: 35 | C203: =IF(D202*D$16/100<=0,0,IF(D202*D$16/100<0.025,0.025,D202*D$16/100)) -> 0.07479995223 | D203: 2.917198137
A204: 2023-09-15 | B204: 37 | C204: =IF(D203*D$16/100<=0,0,IF(D203*D$16/100<0.025,0.025,D203*D$16/100)) -> 0.07292995343 | D204: 2.844268184
A205: 2023-09-29 | B205: 39 | C205: =IF(D204*D$16/100<=0,0,IF(D204*D$16/100<0.025,0.025,D204*D$16/100)) -> 0.07110670459 | D205: 2.773161479
A206: 2023-10-13 | B206: 41 | C206: =IF(D205*D$16/100<=0,0,IF(D205*D$16/100<0.025,0.025,D205*D$16/100)) -> 0.06932903698 | D206: 2.703832442
A207: 2023-10-27 | B207: 43 | C207: =IF(D206*D$16/100<=0,0,IF(D206*D$16/100<0.025,0.025,D206*D$16/100)) -> 0.06759581105 | D207: 2.636236631
... 88 more rows
